bitfinex-derivatives/quotes_BTCF0:USTF0_20251028
["timestamp","ask_amount","ask_price","bid_price","bid_amount"]
[1761669267961,0.3618,115210.0,115200.0,0.19027745]
[1761669268161,0.3618,115210.0,115200.0,0.03343745]
[1761669269966,0.001,115210.0,115200.0,0.03343745]
[1761669270153,0.3618,115210.0,115200.0,0.03343745]
[1761669271157,0.001,115210.0,115200.0,0.03343745]
[1761669271871,0.3618,115210.0,115200.0,0.03083745]
[1761669272065,0.37295,115210.0,115200.0,0.03343745]
[1761669272266,0.37395,115210.0,115200.0,0.03343745]
[1761669272772,0.37395,115210.0,115200.0,0.03083745]
[1761669273072,0.37395,115210.0,115200.0,0.03343745]
[1761669273375,0.37395,115210.0,115200.0,0.04883529]
[1761669273972,0.37395,115210.0,115200.0,0.0817291]
[1761669274272,0.37395,115210.0,115200.0,0.19490433]
[1761669275171,0.37395,115210.0,115200.0,0.20763529]
[1761669275360,0.37395,115210.0,115200.0,0.19231079]
[1761669275563,0.37395,115210.0,115200.0,0.19031079]
[1761669275760,0.37395,115210.0,115200.0,0.03091079]
[1761669282573,0.37395,115210.0,115200.0,0.03351079]
[1761669282776,0.37395,115210.0,115200.0,0.03091079]
[1761669283477,0.37395,115210.0,115190.0,0.19023079]
[1761669283771,0.71621631,115200.0,115180.0,0.03091079]
[1761669283977,0.3608,115190.0,115170.0,0.01283214]
[1761669284162,0.3608,115180.0,115170.0,0.01283214]
[1761669284364,0.3608,115180.0,115170.0,0.00434122]
[1761669284773,0.38082619,115180.0,115170.0,0.00434122]
[1761669285577,0.38082619,115180.0,115170.0,0.01034122]
[1761669287369,0.38342619,115180.0,115170.0,0.01034122]
[1761669287569,0.38082619,115180.0,115170.0,0.01034122]
[1761669287867,0.7388425,115180.0,115170.0,0.01034122]
[1761669289780,0.7388425,115180.0,115170.0,0.02312455]
[1761669290373,0.52268,115180.0,115170.0,0.01034122]
[1761669290580,0.52008,115180.0,115170.0,0.01034122]
[1761669291471,0.71881631,115180.0,115170.0,0.01034122]
[1761669291672,0.87809631,115180.0,115170.0,0.01034122]
[1761669292581,0.90809631,115180.0,115170.0,0.02311538]
[1761669292772,0.88809631,115180.0,115170.0,0.02311538]
[1761669294378,1.32881631,115180.0,115170.0,0.02311538]
[1761669294576,0.3608,115180.0,115170.0,0.01034122]
[1761669294782,0.52008,115180.0,115170.0,0.01034122]
[1761669295175,0.52008,115180.0,115170.0,0.00434122]
[1761669295383,0.3608,115180.0,115170.0,0.00434122]
[1761669295685,0.87549631,115180.0,115170.0,0.00434122]
[1761669295982,0.87549631,115180.0,115170.0,0.00834122]
[1761669296183,0.52008,115180.0,115170.0,0.00834122]
[1761669296888,0.87549631,115180.0,115170.0,0.00834122]
[1761669297074,0.87809631,115180.0,115170.0,0.02110515]
[1761669298986,0.89806732,115180.0,115170.0,0.02110515]
[1761669299387,0.89546732,115180.0,115170.0,0.02110515]
[1761669299688,0.54005101,115180.0,115170.0,0.02110515]
[1761669299887,0.89546732,115180.0,115170.0,0.02110515]
[1761669300678,0.91546732,115180.0,115170.0,0.02110515]
[1761669301381,0.95546732,115180.0,115170.0,0.02110515]
[1761669301585,0.98806732,115180.0,115170.0,0.02110515]
[1761669302186,0.98826625,115180.0,115170.0,0.02110515]
[1761669302587,0.93826625,115180.0,115170.0,0.02110515]
[1761669302882,0.98826625,115180.0,115170.0,0.02110515]
[1761669303089,1.18157517,115180.0,115130.0,0.00445091]
[1761669303288,0.3608,115140.0,115130.0,0.00445091]
[1761669303488,0.35232799,115140.0,115130.0,0.00445091]
[1761669303692,0.3608,115140.0,115130.0,0.00705091]
[1761669303876,0.3608,115150.0,115130.0,0.00705091]
[1761669304081,0.3608,115150.0,115140.0,0.0026]
[1761669304681,0.3608,115150.0,115130.0,0.53657091]
[1761669304988,0.3608,115150.0,115130.0,0.53917091]
[1761669305291,0.3608,115150.0,115140.0,0.0126]
[1761669306576,0.3608,115160.0,115150.0,0.0868459]
[1761669306780,0.3608,115160.0,115150.0,0.51733631]
[1761669306990,0.3608,115160.0,115150.0,0.16192]
[1761669307190,0.3608,115170.0,115150.0,0.16192]
[1761669307380,0.3608,115180.0,115160.0,0.0894383]
[1761669307585,0.3608,115190.0,115170.0,0.60156711]
[1761669307886,0.3608,115190.0,115170.0,0.96496711]
[1761669308088,0.3608,115190.0,115180.0,0.0026]
[1761669308278,0.3608,115190.0,115170.0,0.16192]
[1761669308583,0.3608,115190.0,115170.0,0.2487501]
[1761669308788,0.3608,115190.0,115170.0,0.60156641]
[1761669308980,0.3608,115190.0,115170.0,0.96236641]
[1761669309487,0.3608,115190.0,115180.0,0.0026]
[1761669309693,0.3608,115190.0,115180.0,0.6]
[1761669309986,0.3608,115190.0,115170.0,0.15932]
[1761669310287,0.3608,115180.0,115170.0,0.15932]
[1761669310783,0.3608,115190.0,115170.0,0.15932]
[1761669310981,0.3618,115190.0,115170.0,0.15932]
[1761669311385,0.3608,115190.0,115170.0,0.15932]
[1761669311587,0.3608,115180.0,115170.0,0.16032]
[1761669311980,0.3608,115180.0,115170.0,0.15932]
[1761669312590,0.3618,115190.0,115170.0,0.76192]
[1761669312789,0.3618,115190.0,115180.0,0.0026]
[1761669313489,0.3608,115190.0,115180.0,0.0026]
[1761669313681,0.3608,115200.0,115180.0,0.0026]
[1761669313886,0.38102134,115200.0,115190.0,0.0026]
[1761669314083,0.38102134,115200.0,115190.0,0.16188]
[1761669314394,0.37295,115210.0,115190.0,0.16188]
[1761669314689,0.39316705,115210.0,115200.0,0.0026]
[1761669315291,0.39316705,115210.0,115190.0,0.15928]
[1761669315496,0.3608,115200.0,115190.0,0.15928]
[1761669316884,0.37295,115210.0,115190.0,0.16188]
[1761669317087,0.39315945,115210.0,115200.0,0.0026]
[1761669317487,0.01215,115210.0,115200.0,0.0026]
[1761669317688,0.01215,115210.0,115200.0,0.80562451]
[1761669318186,0.3608,115230.0,115210.0,0.0867949]
[1761669318386,0.38099481,115230.0,115220.0,0.15928]
[1761669318688,0.02019481,115230.0,115220.0,0.16188]
[1761669319799,0.02119481,115230.0,115220.0,0.16188]
[1761669320191,0.001,115230.0,115220.0,0.16188]
[1761669320597,0.001,115230.0,115220.0,0.6094731]
[1761669321202,0.001,115230.0,115220.0,0.52268]
[1761669321391,0.02117483,115230.0,115220.0,0.52268]
[1761669321594,0.001,115230.0,115220.0,0.52268]
[1761669321792,0.001,115230.0,115220.0,0.16188]
[1761669321997,0.001,115230.0,115210.0,0.80561411]
[1761669322291,0.001,115230.0,115220.0,0.15924]
[1761669322498,0.001,115230.0,115220.0,0.52004]
[1761669322800,0.001,115230.0,115220.0,0.6068327]
[1761669323797,0.001,115230.0,115220.0,0.52004]
[1761669324102,0.001,115230.0,115220.0,0.6068326]
[1761669324606,0.0036,115230.0,115220.0,0.15924]
[1761669325097,0.0036,115230.0,115210.0,0.80301671]
[1761669325302,0.0036,115230.0,115220.0,0.15924]
[1761669325500,0.001,115230.0,115220.0,0.16184]
[1761669325703,0.001,115230.0,115220.0,0.15924]
[1761669326297,0.3618,115230.0,115220.0,0.15924]
[1761669326497,0.3644,115230.0,115220.0,0.15924]
[1761669327302,0.001,115230.0,115220.0,0.2486333]
[1761669327504,0.001,115230.0,115220.0,0.16184]
[1761669327707,0.001,115230.0,115220.0,0.42670249]
[1761669328407,0.3618,115230.0,115220.0,0.16184]
[1761669328609,0.3618,115230.0,115220.0,0.15924]
[1761669329310,0.3644,115230.0,115220.0,0.15924]
[1761669331906,0.3618,115230.0,115220.0,0.51089589]
[1761669332209,0.001,115230.0,115220.0,0.87429589]
[1761669334408,0.001,115230.0,115220.0,0.6094334]
[1761669334606,0.001,115230.0,115220.0,0.87429589]
[1761669335517,0.001,115230.0,115220.0,1.47429589]
[1761669336410,0.01665,115240.0,115230.0,0.0867858]
[1761669336604,0.01665,115240.0,115230.0,0.71504829]
[1761669336804,0.01665,115240.0,115230.0,0.4501858]
[1761669337010,0.01665,115240.0,115230.0,0.71504829]
[1761669337605,0.02065,115240.0,115230.0,0.71504829]
[1761669337805,0.02065,115240.0,115230.0,0.62826249]
[1761669338101,0.02325,115240.0,115230.0,0.87160839]
[1761669338907,0.02325,115240.0,115230.0,0.78482249]
[1761669339110,0.02325,115240.0,115230.0,0.62566249]
[1761669339415,0.38405,115240.0,115230.0,0.15916]
[1761669339710,0.02325,115240.0,115220.0,0.62566249]
[1761669340020,0.02065,115240.0,115230.0,0.15916]
[1761669340316,0.02325,115240.0,115230.0,0.15916]
[1761669340501,0.02065,115240.0,115230.0,0.15916]
[1761669341009,0.02065,115240.0,115230.0,0.87420849]
[1761669341210,0.02065,115240.0,115230.0,0.51340849]
[1761669341410,0.02065,115240.0,115230.0,0.51080849]
[1761669341611,0.02065,115240.0,115230.0,0.87420849]
[1761669341807,0.02065,115240.0,115230.0,0.87160849]
[1761669342020,0.02065,115240.0,115230.0,0.87420849]
[1761669343008,0.02065,115240.0,115230.0,0.87160849]
[1761669343212,0.02065,115240.0,115230.0,0.87420849]
[1761669343517,0.02065,115240.0,115230.0,0.92044378]
[1761669346416,0.02065,115240.0,115230.0,0.04883529]
[1761669346718,0.38405,115240.0,115220.0,0.04623529]
[1761669347019,0.0026,115230.0,115220.0,0.04623529]
[1761669347217,0.3634,115230.0,115220.0,0.04623529]
[1761669347417,0.3634,115230.0,115220.0,0.20535529]
[1761669348417,0.38356836,115230.0,115220.0,0.15912]
[1761669349618,0.38616836,115230.0,115220.0,0.15912]
[1761669349822,0.3634,115230.0,115220.0,0.15912]
[1761669350225,0.38357425,115230.0,115220.0,0.15912]
[1761669350525,0.38457425,115230.0,115220.0,0.15912]
[1761669350914,0.38357425,115230.0,115220.0,0.15912]
[1761669351121,0.38657425,115230.0,115220.0,0.15912]
[1761669351318,0.54569425,115230.0,115210.0,0.04623529]
[1761669351522,0.62826249,115220.0,115180.0,0.05877311]
[1761669351820,0.26486249,115190.0,115140.0,0.27369304]
[1761669352029,0.15912,115180.0,115140.0,0.35189706]
[1761669352214,0.16172,115180.0,115140.0,0.27369304]
[1761669352415,0.51992,115170.0,115150.0,0.26486249]
[1761669353128,0.3608,115160.0,115140.0,0.62566249]
[1761669353316,0.50580457,115160.0,115140.0,0.70386651]
[1761669353517,0.50580457,115160.0,115140.0,0.71278666]
[1761669353724,0.50580457,115160.0,115140.0,0.36972015]
[1761669354127,0.50580457,115160.0,115140.0,0.3608]
[1761669354520,0.77066706,115160.0,115130.0,0.47813091]
[1761669354719,0.3608,115150.0,115130.0,0.24181493]
[1761669354929,0.50580457,115160.0,115130.0,0.60261493]
[1761669356231,0.15916,115160.0,115140.0,0.62566249]
[1761669356425,0.51996,115170.0,115140.0,0.71251549]
[1761669356729,0.002,115160.0,115150.0,0.0026]
[1761669356927,0.002,115160.0,115140.0,0.62566249]
[1761669357122,0.002,115160.0,115150.0,0.0026]
[1761669357529,0.51996,115170.0,115140.0,0.71511509]
[1761669357828,0.3608,115160.0,115140.0,0.26486249]
[1761669358028,0.3608,115160.0,115130.0,0.876133]
[1761669359423,0.3618,115160.0,115130.0,0.876133]
[1761669359624,0.001,115160.0,115140.0,0.71251479]
[1761669359822,0.52,115170.0,115140.0,0.71251479]
[1761669360023,0.52,115170.0,115140.0,0.62566249]
[1761669360219,0.3608,115170.0,115140.0,0.62566249]
[1761669360418,0.62566249,115190.0,115160.0,0.26486249]
[1761669360626,0.52,115180.0,115160.0,0.62566249]
[1761669360920,0.26486249,115200.0,115160.0,0.62566249]
[1761669360921,0.3608,115200.0,115170.0,0.87428819]
[1761669361121,0.3608,115210.0,115180.0,0.71247989]
[1761669361326,0.3608,115200.0,115190.0,0.42406249]
[1761669361619,0.27341699,115230.0,115200.0,0.086808]
[1761669361620,0.3608,115230.0,115200.0,0.086808]
[1761669361823,0.37745,115240.0,115230.0,0.0867854]
[1761669362022,0.37745,115240.0,115230.0,0.42418249]
[1761669362023,0.01665,115240.0,115230.0,0.42418249]
[1761669362219,0.37745,115240.0,115230.0,0.42418249]
[1761669362422,0.01665,115240.0,115230.0,0.51096839]
[1761669362631,0.01665,115240.0,115230.0,0.87436839]
[1761669363534,0.01665,115240.0,115230.0,0.87636839]
[1761669363723,0.3653,115280.0,115260.0,0.0867632]
[1761669363924,0.38685556,115280.0,115270.0,0.0867557]
[1761669364122,0.38685556,115280.0,115270.0,0.35161819]
[1761669364424,0.0045,115280.0,115270.0,0.35161819]
[1761669364627,0.3653,115280.0,115270.0,0.35161819]
[1761669364831,0.0045,115280.0,115270.0,0.0867557]
[1761669365028,0.0045,115280.0,115270.0,0.4475557]
[1761669365226,0.0045,115280.0,115270.0,0.35161819]
[1761669365537,0.0045,115280.0,115270.0,0.71241819]
[1761669365727,0.0045,115280.0,115270.0,0.71501819]
[1761669366924,0.0045,115280.0,115270.0,0.35161819]
[1761669367129,0.0045,115280.0,115270.0,0.35421819]
[1761669367329,0.0135,115280.0,115270.0,0.35421819]
[1761669367927,0.0135,115280.0,115270.0,0.35161819]
[1761669368529,0.0075,115280.0,115270.0,0.35161829]
[1761669368730,0.0075,115280.0,115270.0,0.0867558]
[1761669369938,0.3683,115280.0,115270.0,0.15924]
[1761669370536,0.3683,115280.0,115270.0,0.2459958]
[1761669370737,0.3683,115280.0,115270.0,0.15924]
[1761669371240,0.3709,115280.0,115270.0,0.15924]
[1761669371434,0.3709,115280.0,115250.0,0.71242829]
[1761669371634,0.3709,115280.0,115260.0,0.2459229]
[1761669371938,0.3608,115270.0,115260.0,0.15916]
[1761669372125,0.3634,115270.0,115260.0,0.15916]
[1761669372331,0.3634,115270.0,115240.0,0.71243679]
[1761669372532,0.3608,115260.0,115230.0,0.7139228]
[1761669372833,0.62826249,115260.0,115230.0,0.36227801]
[1761669373032,0.3634,115250.0,115230.0,0.52143801]
[1761669373232,0.3634,115250.0,115230.0,0.60822371]
[1761669373435,0.3608,115250.0,115230.0,0.60822371]
[1761669373834,0.3608,115250.0,115230.0,0.52143801]
[1761669374139,0.3634,115240.0,115230.0,0.00447801]
[1761669374730,0.3634,115240.0,115230.0,0.00147801]
[1761669375034,0.3608,115240.0,115230.0,0.00147801]
[1761669375434,0.3634,115240.0,115230.0,0.00147801]
[1761669375836,0.3608,115240.0,115230.0,0.00147801]
[1761669376436,0.51992,115240.0,115230.0,0.00147801]
[1761669377937,0.3608,115240.0,115230.0,0.00147801]
[1761669378143,0.006,115240.0,115230.0,0.00147801]
[1761669378331,0.006,115240.0,115230.0,0.2663405]
[1761669378527,0.51992,115250.0,115230.0,0.2663405]
[1761669378733,0.004,115240.0,115230.0,0.00147801]
[1761669379035,0.3648,115240.0,115230.0,0.16059801]
[1761669379938,0.004,115240.0,115230.0,0.16059801]
[1761669380240,0.3608,115240.0,115230.0,0.16059801]
[1761669380433,0.004,115240.0,115230.0,0.16059801]
[1761669381932,0.3608,115240.0,115230.0,0.16059801]
[1761669382548,0.3618,115240.0,115230.0,0.16059801]
[1761669383539,0.3608,115240.0,115230.0,0.16059801]
[1761669383733,0.004,115240.0,115230.0,0.16059801]
[1761669384155,0.51992,115250.0,115230.0,0.5122457]
[1761669384334,0.3608,115260.0,115230.0,0.60818321]
[1761669384335,0.001,115240.0,115230.0,0.60818321]
[1761669384534,0.001,115240.0,115230.0,0.8730457]
[1761669384733,0.3608,115260.0,115250.0,0.0867707]
[1761669384934,0.3608,115270.0,115250.0,0.51075319]
[1761669385140,0.3608,115270.0,115260.0,0.35422569]
[1761669385341,0.3608,115270.0,115260.0,0.26486249]
[1761669385543,0.3653,115280.0,115260.0,0.35162569]
[1761669385743,0.3653,115280.0,115260.0,0.0867632]
[1761669386139,0.3653,115280.0,115250.0,0.87154829]
[1761669386536,0.3608,115270.0,115250.0,0.15912]
[1761669386939,0.0026,115260.0,115250.0,0.15912]
[1761669387350,0.3608,115270.0,115250.0,0.51075319]
[1761669387847,0.3608,115270.0,115250.0,0.2458907]
[1761669388143,0.3638,115270.0,115250.0,0.2458907]
[1761669388351,0.00165717,115270.0,115260.0,0.0893631]
[1761669388538,0.0045,115280.0,115270.0,0.0867556]
[1761669388738,0.01215,115310.0,115290.0,0.086735]
[1761669388945,0.01215,115310.0,115300.0,0.60125231]
[1761669389549,0.01215,115310.0,115300.0,0.96465231]
[1761669389956,0.01215,115310.0,115300.0,0.87791981]
[1761669390250,0.01215,115310.0,115300.0,0.246253]
[1761669391141,0.03359002,115310.0,115300.0,0.246253]
[1761669391340,0.03359002,115310.0,115300.0,0.607053]
[1761669391542,0.03359002,115310.0,115300.0,0.609653]
[1761669392143,0.03359002,115310.0,115300.0,0.6070531]
[1761669392347,0.03359002,115310.0,115300.0,0.52032]
[1761669392546,0.03359002,115310.0,115300.0,0.6070531]
[1761669392750,0.39439002,115310.0,115280.0,0.4475442]
[1761669393052,0.3608,115300.0,115290.0,0.1594]
[1761669393350,0.38224002,115300.0,115290.0,0.1594]
[1761669394044,0.38484002,115300.0,115290.0,0.1594]
[1761669394246,0.38224002,115300.0,115280.0,0.16036]
[1761669394649,0.38224002,115300.0,115290.0,0.001]
[1761669395454,0.38224002,115300.0,115290.0,0.35599981]
[1761669395950,0.38224002,115300.0,115280.0,0.6069072]
[1761669395951,0.91659983,115300.0,115260.0,0.3608]
[1761669396248,0.3608,115270.0,115260.0,0.15944]
[1761669397245,0.3608,115280.0,115260.0,0.15944]
[1761669397553,0.38224692,115280.0,115260.0,0.15944]
[1761669397757,0.3618,115270.0,115260.0,0.15944]
[1761669398353,0.3608,115270.0,115260.0,0.15944]
[1761669400056,0.3618,115270.0,115260.0,0.15944]
[1761669402549,0.001,115270.0,115260.0,0.15944]
[1761669403156,0.53231,115280.0,115260.0,0.15944]
[1761669403452,0.001,115270.0,115260.0,0.15944]
[1761669403850,0.0036,115270.0,115260.0,0.15944]
[1761669404359,0.0026,115270.0,115260.0,0.15944]
[1761669404562,0.53631,115280.0,115260.0,0.15944]
[1761669404745,0.53631,115280.0,115250.0,0.3608]
[1761669404949,0.3608,115260.0,115250.0,0.15924]
[1761669405355,0.3634,115260.0,115250.0,0.15924]
[1761669405653,0.3608,115260.0,115250.0,0.15924]
[1761669405854,0.3608,115260.0,115240.0,0.51423981]
[1761669406254,0.3634,115260.0,115240.0,0.51423981]
[1761669406450,0.3608,115260.0,115240.0,0.51423981]
[1761669406645,0.38226095,115260.0,115240.0,0.51423981]
[1761669406853,0.3608,115260.0,115240.0,0.51423981]
[1761669407257,0.3608,115270.0,115250.0,0.0867707]
[1761669407459,0.38225958,115270.0,115250.0,0.4475707]
[1761669407660,0.38225958,115270.0,115250.0,0.4501707]
[1761669408265,0.38225958,115270.0,115260.0,0.0026]
[1761669408454,0.38225958,115270.0,115250.0,0.4475707]
[1761669408653,0.38225958,115270.0,115260.0,0.1592]
[1761669409163,0.38225958,115270.0,115260.0,0.1618]
[1761669409361,0.3608,115270.0,115260.0,0.60356301]
[1761669409566,0.17135,115280.0,115260.0,0.60096301]
[1761669409755,0.001,115270.0,115260.0,0.96176251]
[1761669410065,0.3618,115270.0,115260.0,0.1592]
[1761669410865,0.3608,115270.0,115260.0,0.1602]
[1761669411166,0.3822611,115270.0,115260.0,0.1602]
[1761669412571,0.3618,115270.0,115260.0,0.1592]
[1761669413168,0.3608,115270.0,115260.0,0.1592]
[1761669413357,0.3608,115270.0,115250.0,0.51996]
[1761669413861,0.3618,115270.0,115250.0,0.15916]
[1761669414668,0.52092,115270.0,115250.0,0.15916]
[1761669415854,0.51992,115270.0,115250.0,0.15916]
[1761669416061,0.52092,115270.0,115250.0,0.15916]
[1761669416267,0.3608,115260.0,115250.0,0.15916]
[1761669417264,0.52092,115270.0,115250.0,0.15916]
[1761669417460,0.3608,115260.0,115250.0,0.15916]
[1761669417875,0.3608,115260.0,115250.0,0.16016]
[1761669419467,0.3608,115260.0,115250.0,0.001]
[1761669425165,0.3608,115270.0,115250.0,0.001]
[1761669425365,0.5414219,115270.0,115250.0,0.44277041]
[1761669425565,0.3823019,115270.0,115250.0,0.44277041]
[1761669425775,0.3608,115270.0,115260.0,0.15912]
[1761669426672,0.3608,115270.0,115260.0,0.51411981]
[1761669426872,0.3618,115270.0,115260.0,0.51411981]
[1761669427270,0.37295,115280.0,115270.0,0.0867557]
[1761669427471,0.37295,115280.0,115270.0,0.45287293]
[1761669427472,0.01215,115280.0,115270.0,0.45287293]
[1761669427979,0.01215,115280.0,115270.0,0.87547178]
[1761669428177,0.3608,115300.0,115290.0,0.0867407]
[1761669428479,0.38229612,115300.0,115290.0,0.15912]
[1761669428776,0.02149612,115300.0,115290.0,0.15912]
[1761669428976,0.02149612,115300.0,115290.0,0.6066613]
[1761669429377,0.02149612,115300.0,115290.0,0.51992]
[1761669429575,0.02149612,115300.0,115290.0,0.15912]
[1761669429770,0.02549612,115300.0,115290.0,0.15912]
[1761669429971,0.02549612,115300.0,115290.0,0.2458613]
[1761669430681,0.02549612,115300.0,115290.0,0.6066613]
[1761669430980,0.004,115300.0,115290.0,0.66846015]
[1761669431279,0.004,115300.0,115290.0,0.96166111]
[1761669432781,0.004,115300.0,115290.0,0.87491981]
[1761669432977,0.004,115300.0,115290.0,0.96166101]
[1761669433677,0.004,115300.0,115290.0,0.96426101]
[1761669433981,0.004,115300.0,115290.0,1.56426101]
[1761669434781,0.004,115300.0,115290.0,0.96426101]
[1761669436681,0.004,115300.0,115290.0,1.45839981]
[1761669436982,0.004,115300.0,115290.0,1.70422111]
[1761669437282,0.004,115300.0,115290.0,0.87487981]
[1761669437478,0.3648,115300.0,115290.0,0.15908]
[1761669438180,0.3648,115300.0,115280.0,0.35499981]
[1761669438477,0.3634,115290.0,115260.0,0.66844015]
[1761669438681,0.3608,115280.0,115260.0,0.51988]
[1761669438875,0.3608,115280.0,115260.0,0.6066439]
[1761669439780,0.3608,115280.0,115260.0,0.96164371]
[1761669439982,0.3608,115280.0,115260.0,1.02443686]
[1761669440286,0.3608,115280.0,115270.0,0.0026]
[1761669440478,0.3608,115280.0,115260.0,1.03307956]
[1761669440777,0.3608,115280.0,115270.0,0.0026]
[1761669440983,0.3608,115280.0,115270.0,0.0893563]
[1761669441376,0.3608,115280.0,115270.0,0.0867563]
[1761669441584,0.3608,115280.0,115270.0,0.0893563]
[1761669441782,0.3618,115280.0,115270.0,0.0893563]
[1761669442176,0.3608,115280.0,115270.0,0.0893563]
[1761669442485,0.3608,115290.0,115270.0,0.001]
[1761669442681,0.3608,115290.0,115280.0,0.15904]
[1761669442885,0.3608,115290.0,115270.0,0.001]
[1761669443185,0.3608,115280.0,115270.0,0.16004]
[1761669443377,0.3608,115290.0,115270.0,0.51503981]
[1761669444382,0.3608,115280.0,115270.0,0.51503981]
[1761669445080,0.3608,115280.0,115270.0,0.51403981]
[1761669445882,0.3608,115290.0,115270.0,0.51403981]
[1761669446085,0.3608,115280.0,115270.0,0.51403981]
[1761669446578,0.001,115280.0,115270.0,0.51403981]
[1761669447788,0.3618,115280.0,115270.0,0.51403981]
[1761669447989,0.3608,115280.0,115270.0,0.51403981]
[1761669448287,0.3618,115280.0,115270.0,0.15904]
[1761669448677,0.001,115280.0,115270.0,0.15904]
[1761669449082,0.3618,115280.0,115270.0,0.15904]
[1761669449290,0.3618,115280.0,115260.0,0.0026]
[1761669449489,0.3608,115270.0,115260.0,0.0026]
[1761669449991,0.64563903,115270.0,115260.0,0.00119667]
[1761669450184,0.62563903,115270.0,115240.0,0.06179885]
[1761669450378,0.3608,115250.0,115240.0,0.32663788]
[1761669450787,0.3608,115250.0,115240.0,0.26483903]
[1761669451686,0.3608,115250.0,115230.0,0.84795589]
[1761669452092,0.3608,115250.0,115230.0,0.93474199]
[1761669452683,0.3608,115250.0,115230.0,0.94324904]
[1761669452883,0.3608,115250.0,115240.0,0.005]
[1761669453392,0.3608,115250.0,115240.0,0.06679885]
[1761669453795,0.51988,115260.0,115240.0,0.33163788]
[1761669453986,0.3608,115250.0,115240.0,0.33163788]
[1761669454889,0.3608,115250.0,115240.0,0.32663788]
[1761669455392,0.3608,115250.0,115240.0,0.32963788]
[1761669455589,0.3608,115250.0,115240.0,0.41641678]
[1761669455787,0.3608,115250.0,115240.0,0.35661793]
[1761669456197,0.3608,115250.0,115240.0,0.41851832]
[1761669456586,0.3608,115270.0,115250.0,0.0867714]
[1761669456783,0.3608,115270.0,115260.0,0.57256898]
[1761669456983,0.3608,115270.0,115260.0,0.48580518]
[1761669457186,0.3608,115270.0,115260.0,0.51068283]
[1761669457386,0.3608,115280.0,115260.0,0.57256898]
[1761669457593,0.3608,115280.0,115270.0,0.26483903]
[1761669457992,0.3608,115280.0,115260.0,0.51168283]
[1761669458493,0.3608,115280.0,115260.0,0.51068283]
[1761669458697,0.3618,115280.0,115260.0,0.51068283]
[1761669458999,0.3618,115280.0,115260.0,0.57256898]
[1761669459189,0.3618,115280.0,115260.0,0.48580518]
[1761669459390,0.00140333,115270.0,115260.0,0.15908]
[1761669459586,0.36220333,115270.0,115260.0,0.15908]
[1761669459792,0.00140333,115270.0,115260.0,0.15908]
[1761669460096,0.36220333,115270.0,115260.0,0.15908]
[1761669461594,0.36220333,115270.0,115260.0,0.22196615]
[1761669461795,0.36220333,115270.0,115260.0,0.16008]
[1761669462196,0.36220333,115270.0,115260.0,0.42491903]
[1761669462696,0.36220333,115270.0,115260.0,0.16008]
[1761669466987,0.36220333,115270.0,115260.0,0.001]
[1761669471408,0.36220333,115270.0,115260.0,0.06288615]
[1761669471607,0.36220333,115270.0,115260.0,0.001]
[1761669472304,0.36220333,115270.0,115260.0,0.06288615]
[1761669472607,0.36220333,115270.0,115260.0,0.26583903]
[1761669473209,0.3608,115280.0,115260.0,0.35260283]
[1761669473506,0.36220333,115280.0,115270.0,0.06196997]
[1761669473704,0.3608,115280.0,115270.0,0.06196997]
[1761669473898,0.36220333,115280.0,115270.0,0.06196997]
[1761669474109,0.36220333,115280.0,115260.0,0.001]
[1761669474298,0.00140333,115270.0,115250.0,0.9334162]
[1761669474495,0.00140333,115260.0,115250.0,0.5726162]
[1761669474897,0.00140333,115260.0,115250.0,0.06196997]
[1761669475094,0.00140333,115260.0,115250.0,0.30778137]
[1761669475298,0.00140333,115260.0,115250.0,0.22100997]
[1761669475812,0.00140333,115260.0,115250.0,0.488849]
[1761669476510,0.3608,115270.0,115250.0,0.5756183]
[1761669476708,0.3608,115270.0,115250.0,0.488849]
[1761669477096,0.36220333,115270.0,115250.0,0.488849]
[1761669477613,0.36220333,115270.0,115250.0,0.485849]
[1761669477813,0.00140333,115260.0,115250.0,0.486849]
[1761669478712,0.00140333,115260.0,115250.0,0.5736204]
[1761669479215,0.36220333,115270.0,115250.0,0.5736204]
[1761669479406,0.36220333,115270.0,115250.0,0.486849]
[1761669479601,0.36220333,115270.0,115250.0,0.488849]
[1761669479800,0.3608,115260.0,115250.0,0.488849]
[1761669480114,0.36220333,115270.0,115250.0,0.488849]
[1761669480513,0.36220333,115260.0,115250.0,0.488849]
[1761669481213,0.36220333,115260.0,115250.0,0.42487903]
[1761669481609,0.36220333,115260.0,115250.0,0.22200997]
[1761669481812,0.0026,115250.0,115240.0,0.06116331]
[1761669482008,0.3608,115250.0,115230.0,0.00147801]
[1761669482312,0.3608,115240.0,115230.0,0.00147801]
[1761669482708,0.3608,115250.0,115230.0,0.35310264]
[1761669482914,0.3608,115250.0,115240.0,0.26524236]
[1761669483309,0.3608,115250.0,115240.0,0.42428236]
[1761669485005,0.3608,115250.0,115240.0,0.42928236]
[1761669488323,0.3608,115250.0,115240.0,0.16444333]
[1761669488718,0.3608,115250.0,115240.0,0.42928236]
[1761669490737,0.3608,115250.0,115240.0,0.16444333]
[1761669491234,0.3608,115250.0,115240.0,0.16404]
[1761669492023,0.51984,115250.0,115240.0,0.005]
[1761669494316,0.78727903,115250.0,115240.0,0.005]
[1761669495221,0.80727903,115250.0,115240.0,0.005]
[1761669495617,0.78727903,115250.0,115240.0,0.005]
[1761669496427,0.78467903,115250.0,115240.0,0.005]
[1761669496823,0.78727903,115250.0,115240.0,0.005]
[1761669497217,0.82876686,115250.0,115240.0,0.005]
[1761669498128,0.82616686,115250.0,115240.0,0.005]
[1761669498521,0.82616686,115250.0,115240.0,0.002]
[1761669499533,0.80616686,115250.0,115240.0,0.002]
[1761669499830,0.54132783,115250.0,115240.0,0.00240333]
[1761669500019,0.54132783,115250.0,115240.0,0.002]
[1761669504731,0.38228783,115250.0,115240.0,0.26724236]
[1761669504921,0.3608,115250.0,115240.0,0.35402116]
[1761669505122,0.3608,115250.0,115240.0,0.42624236]
[1761669505432,0.3608,115250.0,115240.0,0.51302116]
[1761669506028,0.3608,115260.0,115240.0,0.51302116]
[1761669506229,0.38228044,115260.0,115250.0,0.26524236]